fUSD/lending_fUSD_20240913
["ID","MTS","AMOUNT","RATE_DAILY","PERIOD"]
[337959279,1726217433836,-523.84,0.00012999,2]
[337959280,1726217433846,-656.76,0.00012999,2]
[337959281,1726217433857,-516.35,0.00012999,2]
[337959282,1726217433866,-1474.59,0.00012999,2]
[337959283,1726217433876,-500.0,0.00012999,2]
[337959284,1726217433886,-500.0,0.00012999,2]
[337959285,1726217433896,-500.0,0.00012999,2]
[337959286,1726217433906,-500.0,0.00012999,2]
[337959287,1726217433915,-500.0,0.00012999,2]
[337959288,1726217433925,-500.0,0.00012999,2]
[337959289,1726217433935,-710.01,0.00012999,2]
[337959290,1726217433944,-500.0,0.00012999,2]
[337959291,1726217433954,-217.03784349,0.00012999,2]
[337959292,1726217433964,-500.0,0.00012999,2]
[337959293,1726217433974,-581.75,0.00012999,2]
[337959294,1726217433983,-500.0,0.00012999,2]
[337959295,1726217433992,-500.0,0.00012999,2]
[337959296,1726217434002,-508.47,0.00012999,2]
[337959297,1726217434012,-500.0,0.00012999,2]
[337959298,1726217434023,-500.0,0.00012999,2]
[337959299,1726217434033,-3184.67,0.00012999,2]
[337959300,1726217434044,-500.0,0.00012999,2]
[337959301,1726217434054,-500.0,0.00012999,2]
[337959302,1726217434064,-983.73,0.00012999,2]
[337959303,1726217434074,-976.57,0.00012999,2]
[337959304,1726217434084,-500.0,0.00012999,2]
[337959305,1726217434093,-652.55,0.00012999,2]
[337959306,1726217434102,-822.29,0.00012999,2]
[337959307,1726217434112,-500.0,0.00012999,2]
[337959308,1726217434121,-663.43,0.00012999,2]
[337959309,1726217434131,-500.0,0.00012999,2]
[337959310,1726217434142,-500.0,0.00012999,2]
[337959311,1726217434152,-500.0,0.00012999,2]
[337959312,1726217434162,-6487.79,0.00012999,2]
[337959313,1726217434172,-500.0,0.00012999,2]
[337959314,1726217434182,-500.0,0.00012999,2]
[337959315,1726217434192,-1394.94,0.00012999,2]
[337959316,1726217434202,-1245.14,0.00012999,2]
[337959317,1726217434212,-500.0,0.00012999,2]
[337959318,1726217434222,-500.0,0.00012999,2]
[337959319,1726217434231,-500.0,0.00012999,2]
[337959320,1726217434241,-500.0,0.00012999,2]
[337959321,1726217434251,-500.0,0.00012999,2]
[337959322,1726217434261,-500.0,0.00012999,2]
[337959323,1726217434271,-527.76,0.00012999,2]
[337959324,1726217434283,-500.0,0.00012999,2]
[337959325,1726217434292,-500.0,0.00012999,2]
[337959326,1726217434302,-500.0,0.00012999,2]
[337959327,1726217434311,-500.0,0.00012999,2]
[337959328,1726217434321,-500.0,0.00012999,2]
[337959329,1726217434330,-500.0,0.00012999,2]
[337959330,1726217434340,-570.61,0.00012999,2]
[337959331,1726217434349,-500.0,0.00012999,2]
[337959332,1726217434358,-500.0,0.00012999,2]
[337959333,1726217434368,-500.0,0.00012999,2]
[337959334,1726217434377,-1217.02,0.00012999,2]
[337959335,1726217434387,-500.0,0.00012999,2]
[337959336,1726217434407,-500.0,0.00012999,2]
[337959337,1726217434416,-500.0,0.00012999,2]
[337959338,1726217434426,-500.0,0.00012999,2]
[337959339,1726217434435,-500.0,0.00012999,2]
[337959340,1726217434448,-7456.18,0.00012999,2]
[337959341,1726217434458,-500.0,0.00012999,2]
[337959342,1726217434468,-500.0,0.00012999,2]
[337959343,1726217434478,-500.0,0.00012999,2]
[337959344,1726217434487,-578.63,0.00012999,2]
[337959345,1726217434497,-500.0,0.00012999,2]
[337959346,1726217434507,-500.0,0.00012999,2]
[337959347,1726217434517,-658.86,0.00012999,2]
[337959348,1726217434527,-500.0,0.00012999,2]
[337959349,1726217434537,-500.0,0.00012999,2]
[337959350,1726217434547,-500.0,0.00012999,2]
[337959351,1726217434556,-631.01,0.00012999,2]
[337959352,1726217434566,-500.0,0.00012999,2]
[337959353,1726217434575,-957.25,0.00012999,2]
[337959354,1726217434585,-1062.24,0.00012999,2]
[337959355,1726217434595,-1071.95,0.00012999,2]
[337959356,1726217434605,-500.0,0.00012999,2]
[337959357,1726217434615,-500.0,0.00012999,2]
[337959358,1726217434625,-500.0,0.00012999,2]
[337959359,1726217434635,-500.0,0.00012999,2]
[337959360,1726217434647,-500.0,0.00012999,2]
[337959361,1726217434656,-500.0,0.00012999,2]
[337959362,1726217434666,-500.0,0.00012999,2]
[337959363,1726217434676,-500.0,0.00012999,2]
[337959364,1726217434686,-31184.46645782,0.00013,2]
[337959365,1726217434695,-195373.16614666,0.00013,2]
[337959366,1726217434714,-2047.29164152,0.00013,2]
[337959367,1726217434725,-661.83076547,0.00013,2]
[337959368,1726217434737,-953.4260579,0.00013,2]
[337959369,1726217434748,-9892.94750659,0.00013,2]
[337959370,1726217434760,-534.56001,0.00013,2]
[337959371,1726217434776,-600.09293378,0.00013,2]
[337959372,1726217434790,-3273.10212446,0.00013,2]
[337959378,1726217437580,-407.05040183,0.00012999,2]
[337959379,1726217437590,-451.16559817,0.00012999,2]
[337959380,1726217437601,-48.83440183,0.00012999,2]
[337959381,1726217437611,-464.18330805,0.00012999,2]
[337959382,1726217437620,-850.01226951,0.00013,2]
[337959383,1726217437631,-5878.35106938,0.00013,2]
[337959384,1726217437643,-18092.13124243,0.00013,2]
[337959385,1726217437654,-6057.23386798,0.00013,2]
[337959386,1726217437665,-13121.56862149,0.00013,2]
[337959387,1726217437675,-24654.16122351,0.00013,2]
[337959388,1726217437686,-22243.24876,0.00013,2]
[337959389,1726217437697,-3413.85644702,0.00013,2]
[337959390,1726217437708,-4032.83102732,0.00013,2]
[337959391,1726217437719,-459.01463883,0.00013,2]
[337959392,1726217437729,-1152.06794487,0.00013,2]
[337959393,1726217437740,-533.11571277,0.00013,2]
[337959394,1726217437751,-521.13168246,0.00013,2]
[337959395,1726217437762,-4481.48199788,0.00013,2]
[337959396,1726217437773,-5106.10000249,0.00013,2]
[337959397,1726217437788,-463.4202856,0.00013,2]
[337959398,1726217437799,-1379.86572107,0.00013,2]
[337959399,1726217437809,-2570.50200004,0.00013,2]
[337959400,1726217437820,-2019946.36003967,0.00013,2]
[337959401,1726217437830,-332851.09191136,0.00013,2]
[337959402,1726217437841,-662807.17135979,0.00013,2]
[337959403,1726217437863,-1398218.83588162,0.00013,2]
[337959404,1726217437874,-2426.81983942,0.00013,2]
[337959405,1726217437891,-261.569,0.00013,2]
[337959406,1726217437902,-290.08119832,0.00013,2]
[337959407,1726217437913,-11397.85447334,0.00013,2]
[337959408,1726217437925,-16932.32639603,0.00013,2]
[337959409,1726217437937,-54589.35873654,0.00013,2]
[337959558,1726217439594,-500.0,0.00012999,2]
[337959560,1726217439604,-1460.49,0.00012999,2]
[337959562,1726217439614,-500.0,0.00012999,2]
[337959564,1726217439623,-2325.87046934,0.00013,2]
[337959567,1726217439634,-3198.49104601,0.00013,2]
[337959569,1726217439651,-2327.8579357,0.00013,2]
[337959571,1726217439663,-340.78144659,0.00013,2]
[337959574,1726217439674,-2835.60000006,0.00013,2]
[337959579,1726217439714,-350.22087687,0.00013,2]
[337959581,1726217439725,-639.318,0.00013,2]
[337959583,1726217439736,-622.21039435,0.00013,2]
[337959588,1726217439772,-600.70263248,0.00013,2]
[337959594,1726217439832,-500.0,0.00012999,2]
[337959596,1726217439841,-1096.88006637,0.00013,2]
[337959598,1726217439853,-1668.94830626,0.00013,2]
[337959601,1726217439864,-309720.92259062,0.00013,2]
[337959604,1726217439892,-1301.90749695,0.00013,2]
[337959607,1726217439904,-3784.86407962,0.00013,2]
[337959609,1726217439916,-561.97850452,0.00013,2]
[337959611,1726217439927,-1028.443,0.00013,2]
[337959613,1726217439938,-3084.36909757,0.00013,2]
[337959615,1726217439949,-16040.5,0.00013,2]
[337959617,1726217439960,-322.50000001,0.00013,2]
[337959621,1726217439983,-1156.2,0.00013,2]
[337959623,1726217439994,-2689.99555988,0.00013,2]
[337959625,1726217440005,-333.81892786,0.00013,2]
[337959627,1726217440016,-280.00170852,0.00013,2]
[337959629,1726217440028,-793.09367919,0.00013,2]
[337959631,1726217440039,-268.39494639,0.00013,2]
[337959634,1726217440050,-581.256362,0.00013,2]
[337959636,1726217440061,-14769.35656793,0.00013,2]
[337959882,1726217442553,-567.75,0.00012999,2]
[337959884,1726217442563,-500.0,0.00012999,2]
[337959886,1726217442572,-1931.9087433,0.00013,2]
[337959888,1726217442583,-19519.89995918,0.00013,2]
[337959994,1726217443711,-11553.72772845,0.00013,2]
[337959996,1726217443722,-1095.78215054,0.00013,2]
[337959998,1726217443734,-863.18646921,0.00013,2]
[337960000,1726217443749,-1317.00601232,0.00013,2]
[337960003,1726217443765,-2581.2614539,0.00013,2]
[337960005,1726217443779,-7595.75675507,0.00013,2]
[337960007,1726217443791,-541.92539657,0.00013,2]
[337960008,1726217443803,-697.68583,0.00013,2]
[337960010,1726217443814,-720.02828238,0.00013,2]
[337960012,1726217443827,-502.49912,0.00013,2]
[337960014,1726217443839,-1240.38172753,0.00013,2]
[337960016,1726217443851,-485.29999995,0.00013,2]
[337960018,1726217443863,-1308.00000413,0.00013,2]
[337960020,1726217443878,-23521.76724492,0.00013,2]
[337960022,1726217443889,-505.5664408,0.00013,2]
[337960151,1726217445610,-500.0,0.00012999,2]
[337960153,1726217445621,-1097.18,0.00012999,2]
[337960155,1726217445630,-11108.92000001,0.00013,2]
[337960158,1726217445642,-89411.58007121,0.00013,2]
[337960160,1726217445653,-572.08599567,0.00013,2]
[337960221,1726217446237,-9804.0114,0.00013,2]
[337960223,1726217446250,-541.614,0.00013,2]
[337960225,1726217446261,-3627.57220054,0.00013,2]
[337960228,1726217446280,-399.98561821,0.00013,2]
[337960230,1726217446292,-319.0,0.00013,2]
[337960232,1726217446304,-1011.57802586,0.00013,2]
[337960236,1726217446326,-24597.39971023,0.00013,2]
[337960238,1726217446341,-5771.89169257,0.00013,2]
[337960241,1726217446352,-37162.56565596,0.00013,2]
[337962802,1726217511717,249.37,0.00010959,2]
[337962803,1726217659138,250.0,0.00012079,2]
[337962812,1726217766162,170.81,0.00011989,2]
[337962814,1726217908856,155.2,0.00010959,2]
[337962815,1726217912480,619.73,0.00011988,2]
[337962816,1726217919053,360.67,0.0001007,2]
[337962817,1726218013641,13188.23,0.00011988,2]
[337962834,1726218078725,193.31,0.00011988,2]
[337962835,1726218220956,1000.0,0.00011968,2]
[337962836,1726218272359,158.52,0.00011996,2]
[337962837,1726218272585,158.52,0.00012,2]
[337962838,1726218272801,158.52,0.00012004,2]
[337962839,1726218273022,158.52,0.00012007,2]
[337962840,1726218273231,158.52,0.00012011,2]
[337962841,1726218273655,158.52,0.00012015,2]
[337962842,1726218273881,158.52,0.00012019,2]
[337962843,1726218274084,158.52,0.00012022,2]
[337962844,1726218274519,158.52,0.00012026,2]
[337962845,1726218274722,158.52,0.0001203,2]
[337962846,1726218274935,158.52,0.00012034,2]
[337962847,1726218275377,158.52,0.00012037,2]
[337962848,1726218275611,158.52,0.00012041,2]
[337962849,1726218275824,158.52,0.00012045,2]
[337962850,1726218276024,158.52,0.00012049,2]
[337962851,1726218276257,158.52,0.00012052,2]
[337962852,1726218276663,158.52,0.00012056,2]
[337962853,1726218277850,250.0,0.00011988,2]
[337962854,1726218419857,384.37,0.00010505,2]
[337962855,1726218458429,875.1,0.00011947,2]
[337962896,1726218631990,-207.09,0.00012347,2]
[337962897,1726218632000,-6010.72,0.00012411,2]
[337962898,1726218632010,-179.36,0.00012515,2]
[337962899,1726218632019,-384.37,0.00012769,2]
[337962900,1726218632031,-179.20467116,0.00012802,2]
[337962901,1726218632044,-820.78532884,0.00012802,2]
[337962902,1726218632055,-1936.54303228,0.0001287,2]
[337962903,1726218632066,-172.32,0.00012883,2]
[337962904,1726218632076,-898.87023372,0.00012883,2]
[337962908,1726218632190,-19.67976628,0.00012883,2]
[337962909,1726218632200,-278.9410957,0.00012959,2]
[337962910,1726218632212,-86.2689043,0.00012959,2]
[337962911,1726218632222,-299.99,0.00012959,2]
[337962912,1726218632235,-845.51,0.00012959,2]
[337962913,1726218632245,-499.99,0.00012959,2]
[337962914,1726218632254,-1165.0,0.00012959,2]
[337962915,1726218632265,-1938.88031948,0.00012959,2]
[337962916,1726218632278,-3199.29338052,0.00012959,2]
[337962917,1726218632289,-500.0,0.00012999,2]
[337962918,1726218632299,-532.61,0.00012999,2]
[337962919,1726218632309,-500.0,0.00012999,2]
[337962920,1726218632321,-500.0,0.00012999,2]
[337962921,1726218632330,-500.0,0.00012999,2]
[337962922,1726218632339,-500.0,0.00012999,2]
[337962923,1726218632349,-500.0,0.00012999,2]
[337962924,1726218632358,-500.0,0.00012999,2]
[337962925,1726218632367,-500.0,0.00012999,2]
[337962926,1726218632377,-500.0,0.00012999,2]
[337962927,1726218632386,-500.0,0.00012999,2]
[337962928,1726218632396,-600.68,0.00012999,2]
[337962929,1726218632405,-500.0,0.00012999,2]
[337962930,1726218632417,-500.0,0.00012999,2]
[337962931,1726218632426,-500.0,0.00012999,2]
[337962932,1726218632438,-500.0,0.00012999,2]
[337962933,1726218632447,-500.0,0.00012999,2]
[337962934,1726218632457,-500.0,0.00012999,2]
[337962935,1726218632466,-500.0,0.00012999,2]
[337962936,1726218632475,-500.0,0.00012999,2]
[337962937,1726218632484,-500.0,0.00012999,2]
[337962938,1726218632494,-500.0,0.00012999,2]
[337962939,1726218632503,-500.0,0.00012999,2]
[337962940,1726218632513,-500.0,0.00012999,2]
[337962941,1726218632524,-500.0,0.00012999,2]
[337962942,1726218632534,-195.18550999,0.00012999,2]
[337962943,1726218632543,-500.0,0.00012999,2]
[337962944,1726218632552,-500.0,0.00012999,2]
[337962945,1726218632561,-500.0,0.00012999,2]
[337962946,1726218632570,-500.0,0.00012999,2]
[337962947,1726218632580,-500.0,0.00012999,2]
[337962948,1726218632589,-500.0,0.00012999,2]
[337962949,1726218632598,-500.0,0.00012999,2]
[337962950,1726218632608,-575.28,0.00012999,2]
[337962951,1726218632617,-500.0,0.00012999,2]
[337962952,1726218632626,-1499.91,0.00012999,2]
[337962953,1726218632635,-571.35,0.00012999,2]
[337962954,1726218632645,-1817.1,0.00012999,2]
[337962955,1726218632654,-500.0,0.00012999,2]
[337962956,1726218632663,-609.77,0.00012999,2]
[337962957,1726218632672,-500.0,0.00012999,2]
[337962958,1726218632681,-528.89,0.00012999,2]
[337962959,1726218632690,-500.0,0.00012999,2]
[337962960,1726218632699,-804.65,0.00012999,2]
[337962961,1726218632709,-500.0,0.00012999,2]
[337962962,1726218632720,-500.0,0.00012999,2]
[337962963,1726218632732,-635.79,0.00012999,2]
[337962964,1726218632742,-499.99,0.00012999,2]
[337962965,1726218632751,-150.99,0.00012999,2]
[337962966,1726218632760,-61625.61046351,0.00013,2]
[337962967,1726218632772,-2302.18123348,0.00013,2]
[337962968,1726218632781,-15.39129308,0.00013,2]
[337962969,1726218632792,-701.71870692,0.00013,2]
[337962970,1726218632801,-2000.0,0.00013,2]
[337962971,1726218632810,-200.0,0.00013,2]
[337962972,1726218632819,-2000.0,0.00013,2]
[337962973,1726218632828,-200.0,0.00013,2]
[337962974,1726218632837,-193.84481563,0.00013,2]
[337962975,1726218632848,-820.15518437,0.00013,2]
[337962976,1726218632858,-1331.93686,0.00013,2]
[337962977,1726218632867,-2000.0,0.0001313,2]
[337962978,1726218632877,-200.0,0.0001313,2]
[337962979,1726218632895,-604.97470848,0.0001313,2]
[337962980,1726218632910,-552.46305185,0.0001313,2]
[337962985,1726218638160,-842.56223967,0.0001313,2]
[337962986,1726218638172,-200.0,0.0001313,2]
[337962987,1726218638182,-3386.2606,0.00013171,2]
[337962988,1726218638191,-608.45161819,0.00013171,2]
[337962989,1726218638200,-246.89441001,0.00013173,2]
[337962990,1726218638210,-2000.0,0.00013261,2]
[337962992,1726218638219,-200.0,0.00013261,2]
[337962993,1726218638228,-2000.0,0.00013261,2]
[337962994,1726218638238,-200.0,0.00013261,2]
[337962995,1726218638247,-500.0,0.00013271,2]
[337962996,1726218638256,-500.0,0.00013271,2]
[337962997,1726218638265,-500.0,0.00013271,2]
[337962999,1726218638276,-500.0,0.00013271,2]
[337963000,1726218638286,-500.0,0.00013271,2]
[337963002,1726218638295,-1051.47,0.00013271,2]
[337963004,1726218638304,-500.0,0.00013271,2]
[337963006,1726218638314,-500.0,0.00013271,2]
[337963008,1726218638323,-500.0,0.00013271,2]
[337963010,1726218638333,-500.0,0.00013271,2]
[337963011,1726218638342,-500.0,0.00013271,2]
[337963013,1726218638351,-500.0,0.00013271,2]
[337963015,1726218638361,-684.79,0.00013271,2]
[337963017,1726218638370,-636.35,0.00013271,2]
[337963018,1726218638379,-573.2,0.00013271,2]
[337963019,1726218638389,-686.46,0.00013271,2]
[337963020,1726218638399,-1491.23,0.00013271,2]
[337963021,1726218638408,-500.0,0.00013271,2]
[337963022,1726218638417,-500.0,0.00013271,2]
[337963023,1726218638427,-1664.27,0.00013271,2]
[337963024,1726218638436,-1564.31,0.00013271,2]
[337963025,1726218638445,-500.0,0.00013271,2]
[337963026,1726218638454,-500.0,0.00013271,2]
[337963027,1726218638464,-500.0,0.00013271,2]
[337963028,1726218638473,-1413.14,0.00013271,2]
[337963029,1726218638483,-500.0,0.00013271,2]
[337963030,1726218638492,-500.0,0.00013271,2]
[337963031,1726218638501,-1487.70747715,0.00013271,2]
[337963154,1726218639787,-1564.27252285,0.00013271,2]
[337963156,1726218639796,-431.50438118,0.00013271,2]
[337963158,1726218639808,-68.49561882,0.00013271,2]
[337963160,1726218639818,-500.0,0.00013271,2]
[337963162,1726218639827,-614.30438118,0.00013271,2]
[337963164,1726218639838,-321.57561882,0.00013271,2]
[337963166,1726218639848,-500.0,0.00013271,2]
[337963168,1726218639858,-1241.89703891,0.00013271,2]
[337963170,1726218639869,-256.62236691,0.00013271,2]
[337963173,1726218639885,-1736.41306025,0.00013271,2]
[337963175,1726218639897,-515.56383828,0.00013271,2]
[337963177,1726218639909,-582.83643837,0.00013271,2]
[337963179,1726218639920,-1884.12725728,0.00013271,2]
[337963181,1726218639930,-95.66678543,0.00013271,2]
[337963184,1726218639954,-508.03115224,0.00013271,2]
[337963186,1726218639965,-589.56206233,0.00013271,2]
[337963188,1726218639974,-171.18582968,0.00013271,2]
[337963191,1726218639987,-874.11182625,0.00013271,2]
[337963193,1726218639998,-291.52234407,0.00013271,2]
[337963195,1726218640008,-375.13765593,0.00013271,2]
[337963197,1726218640024,-124.86234407,0.00013271,2]
[337963199,1726218640034,-500.0,0.00013271,2]
[337963201,1726218640043,-500.0,0.00013271,2]
[337963203,1726218640053,-505.77,0.00013271,2]
[337963205,1726218640063,-500.0,0.00013271,2]
[337963208,1726218640072,-500.0,0.00013271,2]
[337963209,1726218640082,-500.0,0.00013271,2]
[337963211,1726218640091,-1166.31,0.00013271,2]
[337963213,1726218640101,-500.0,0.00013271,2]
[337963215,1726218640111,-7145.51,0.00013271,2]
[337963217,1726218640120,-546.84,0.00013271,2]
[337963219,1726218640129,-500.0,0.00013271,2]
[337963221,1726218640140,-500.0,0.00013271,2]
[337963223,1726218640149,-500.0,0.00013271,2]
[337963225,1726218640159,-1017.98,0.00013271,2]
[337963227,1726218640173,-500.0,0.00013271,2]
[337963229,1726218640182,-500.0,0.00013271,2]
[337963231,1726218640192,-382.78435606,0.00013271,2]
[337963233,1726218640202,-500.0,0.00013271,2]
[337963235,1726218640212,-500.0,0.00013271,2]
[337963237,1726218640221,-604.72,0.00013271,2]
[337963238,1726218640230,-500.0,0.00013271,2]
[337963240,1726218640241,-500.0,0.00013271,2]
[337963242,1726218640250,-1027.28,0.00013271,2]
[337963244,1726218640261,-500.0,0.00013271,2]
[337963246,1726218640270,-500.0,0.00013271,2]
[337963247,1726218640280,-544.09,0.00013271,2]
[337963249,1726218640290,-272.49025144,0.00013272,2]
[337963251,1726218640299,-1018.93,0.00013272,2]
[337963253,1726218640309,-500.0,0.00013272,2]
[337963255,1726218640318,-500.0,0.00013272,2]
[337963257,1726218640328,-587.88000684,0.00013272,2]
[337963259,1726218640337,-500.0,0.00013272,2]
[337963261,1726218640348,-500.0,0.00013272,2]
[337963263,1726218640357,-500.0,0.00013272,2]
[337963265,1726218640367,-500.0,0.00013272,2]
[337963267,1726218640377,-500.0,0.00013272,2]
[337963269,1726218640386,-500.0,0.00013272,2]
[337963271,1726218640395,-500.0,0.00013272,2]
[337963273,1726218640404,-265.63318634,0.00013272,2]
[337963275,1726218640413,-500.0,0.00013272,2]
[337963277,1726218640422,-500.0,0.00013272,2]
[337963279,1726218640431,-500.0,0.00013272,2]
[337963281,1726218640442,-210.02,0.00013272,2]
[337963283,1726218640451,-500.0,0.00013272,2]
[337963285,1726218640460,-700.3,0.00013272,2]
[337963286,1726218640469,-500.0,0.00013272,2]
[337963288,1726218640479,-500.0,0.00013272,2]
[337963290,1726218640488,-500.0,0.00013272,2]
[337963292,1726218640497,-500.0,0.00013272,2]
[337963294,1726218640507,-500.0,0.00013272,2]
[337963296,1726218640517,-500.0,0.00013272,2]
[337963298,1726218640526,-500.0,0.00013272,2]
[337963300,1726218640536,-500.0,0.00013272,2]
[337963302,1726218640546,-500.0,0.00013272,2]
[337963304,1726218640555,-500.0,0.00013272,2]
[337963306,1726218640565,-500.0,0.00013272,2]
[337963308,1726218640574,-500.0,0.00013272,2]
[337963310,1726218640583,-500.0,0.00013272,2]
[337963311,1726218640593,-500.0,0.00013272,2]
[337963313,1726218640603,-500.0,0.00013272,2]
[337963315,1726218640612,-500.0,0.00013272,2]
[337963317,1726218640621,-500.0,0.00013272,2]
[337963319,1726218640631,-500.0,0.00013272,2]
[337963321,1726218640641,-500.0,0.00013272,2]
[337963323,1726218640651,-500.0,0.00013272,2]
[337963325,1726218640660,-500.0,0.00013272,2]
[337963327,1726218640670,-705.44,0.00013272,2]
[337963329,1726218640680,-500.0,0.00013272,2]
[337963331,1726218640690,-772.83,0.00013272,2]
[337963333,1726218640700,-500.0,0.00013272,2]
[337963335,1726218640709,-500.0,0.00013272,2]
[337963337,1726218640718,-500.0,0.00013272,2]
[337963339,1726218640728,-500.0,0.00013272,2]
[337963341,1726218640738,-500.0,0.00013272,2]
[337963343,1726218640748,-500.0,0.00013272,2]
[337963345,1726218640758,-500.0,0.00013272,2]
[337963347,1726218640767,-285.67910595,0.00013272,2]
[337963349,1726218640777,-598.48,0.00013272,2]
[337963351,1726218640788,-678.8,0.00013272,2]
[337963353,1726218640798,-917.37,0.00013272,2]
[337963355,1726218640807,-1399.64,0.00013272,2]
[337963358,1726218640818,-500.0,0.00013272,2]
[337963360,1726218640827,-5569.89,0.00013272,2]
[337963362,1726218640836,-654.19,0.00013272,2]
[337963364,1726218640847,-8461.19,0.00013272,2]
[337963366,1726218640857,-519.34,0.00013272,2]
[337963368,1726218640866,-842.69,0.00013272,2]
[337963370,1726218640876,-500.0,0.00013272,2]
[337963371,1726218640885,-500.0,0.00013272,2]
[337963373,1726218640895,-619.44,0.00013272,2]
[337963375,1726218640905,-500.0,0.00013272,2]
[337963378,1726218640917,-500.0,0.00013272,2]
[337963380,1726218640927,-500.0,0.00013272,2]
[337963382,1726218640937,-735.86,0.00013272,2]
[337963384,1726218640946,-2568.57,0.00013272,2]
[337963386,1726218640955,-524.53,0.00013272,2]
[337963387,1726218640964,-921.95,0.00013272,2]
[337963390,1726218640975,-560.62,0.00013272,2]
[337963391,1726218640984,-500.0,0.00013272,2]
[337963393,1726218640995,-500.0,0.00013272,2]
[337963395,1726218641004,-946.96,0.00013272,2]
[337963397,1726218641014,-500.0,0.00013272,2]
[337963399,1726218641023,-502.01,0.00013272,2]
[337963401,1726218641033,-500.0,0.00013272,2]
[337963403,1726218641042,-680.43,0.00013272,2]
[337963404,1726218641051,-500.0,0.00013272,2]
[337963406,1726218641061,-500.0,0.00013272,2]
[337963408,1726218641070,-557.51,0.00013272,2]
[337963410,1726218641079,-500.0,0.00013272,2]
[337963412,1726218641088,-500.0,0.00013272,2]
[337963414,1726218641098,-500.0,0.00013272,2]
[337963416,1726218641107,-500.0,0.00013272,2]
[337963418,1726218641116,-500.0,0.00013272,2]
[337963420,1726218641125,-731.18,0.00013272,2]
[337963422,1726218641135,-500.0,0.00013272,2]
[337963424,1726218641144,-500.0,0.00013272,2]
[337963426,1726218641154,-500.0,0.00013272,2]
[337963428,1726218641166,-625.36,0.00013272,2]
[337963430,1726218641175,-500.0,0.00013272,2]
[337963431,1726218641185,-500.0,0.00013272,2]
[337963433,1726218641194,-500.0,0.00013272,2]
[337963435,1726218641203,-500.0,0.00013272,2]
[337963437,1726218641213,-500.0,0.00013272,2]
[337963439,1726218641223,-887.09,0.00013272,2]
[337963441,1726218641232,-500.0,0.00013272,2]
[337963443,1726218641244,-500.0,0.00013272,2]
[337963445,1726218641252,-788.03,0.00013272,2]
[337963446,1726218641261,-500.0,0.00013272,2]
[337963448,1726218641270,-500.0,0.00013272,2]
[337963450,1726218641280,-500.0,0.00013272,2]
[337963452,1726218641289,-500.0,0.00013272,2]
[337963454,1726218641299,-500.0,0.00013272,2]
[337963456,1726218641308,-500.0,0.00013272,2]
[337963458,1726218641318,-500.0,0.00013272,2]
[337963460,1726218641327,-500.0,0.00013272,2]
[337963462,1726218641336,-631.4,0.00013272,2]
[337963463,1726218641345,-500.0,0.00013272,2]
[337963465,1726218641355,-500.0,0.00013272,2]
[337963467,1726218641364,-500.0,0.00013272,2]
[337963469,1726218641373,-500.0,0.00013272,2]
[337963471,1726218641383,-500.0,0.00013272,2]